[Event "72nd RUS-ch Higher League 2019"]
[Site "Yaroslavl"]
[Date "2019.07.05"]
[Round "8.25"]
[White "Galaktionov, Artem"]
[Black "Shimanov, Aleksandr"]
[Result "1-0"]
[ECO "A41"]
[WhiteElo "2371"]
[BlackElo "2615"]
[Annotator "RC"]
[PlyCount "85"]
[EventDate "2019.06.27"]
[EventType "swiss"]
[EventCountry "RUS"]
[SourceTitle "playchess.com"]
[Source "ChessBase"]
[SourceQuality "1"]
[TimeControl "40/5400+30:1800+30"]

1. d4 {[%emt 0:00:00]} d6 {[%emt 0:04:15]} 2. Nf3 {[%emt 0:00:00]} Nf6 {[%emt 0:00:06]} 3. c4 {[%emt 0:00:00]} g6 {[%emt 0:00:05]} 4. Nc3 {[%emt 0:00:00]} Bf5 {[%emt 0:00:27]} 5. h3 {[%emt 0:06:36]} Ne4 {[%emt 0:01:08]} 6. Nxe4 {[%emt 0:03:24]} Bxe4 {[%emt 0:00:34]} 7. Ng5 {[%emt 0:00:04]} Bf5 {[%emt 0:02:08]} 8. g4 {[%emt 0:02:59]} Bc8 {[%emt 0:00:36]} 9. Bg2 {[%emt 0:01:21]} Bg7 {[%emt 0:00:17]} 10. Nf3 {[%emt 0:07:17]} Nd7 {[%emt 0:08:08]} 11. Be3 {[%emt 0:05:58]} e5 {[%emt 0:05:30]} 12. Qd2 {[%emt 0:08:45]} h6 {[%emt 0:05:45]} 13. O-O-O {[%emt 0:21:02]} Qe7 {[%emt 0:03:15]} 14. dxe5 {[%emt 0:04:16]} dxe5 {[%emt 0:00:54]} 15. Qa5 {[%emt 0:00:11]} c6 {[%emt 0:19:00]} 16. Nd2 {[%emt 0:09:18]} O-O {[%emt 0:10:43]} 17. Qc7 {[%emt 0:05:17]} f5 {[%emt 0:05:08]} 18. gxf5 {[%emt 0:02:21]} gxf5 {[%emt 0:00:05]} 19. Nb3 {[%emt 0:05:46]} Qf7 {[%emt 0:06:56]} 20. Na5 {[%emt 0:00:37]} e4 {[%emt 0:05:52]} 21. Bd4 {[%emt 0:02:06]} Nf6 {[%emt 0:00:46]} 22. Qxf7+ {[%emt 0:00:19]} Rxf7 {[%emt 0:00:05]} 23. f3 {[%emt 0:01:22]} exf3 {[%emt 0:04:47]} 24. Bxf3 {[%emt 0:00:17]} Be6 {[%emt 0:00:16]} 25. Rhg1 {[%emt 0:00:28]} Kh7 {[%emt 0:00:36]} 26. Bc3 {[%emt 0:03:48]} Rg8 {[%emt 0:01:56]} 27. Rd6 {[%emt 0:01:01]} Bc8 {[%emt 0:02:23]} 28. Rxg7+ {[%emt 0:03:55]} Kxg7 {[%emt 0:00:18]} 29. Bh5 {[%emt 0:00:03]} Rgf8 {[%emt 0:02:09]} 30. Bxf7 {[%emt 0:00:04]} Rxf7 {[%emt 0:00:04]} 31. Nb3 {[%emt 0:00:20]} f4 {[%emt 0:01:36]} 32. Nd2 {[%emt 0:00:34]} Bf5 {[%emt 0:01:02]} 33. h4 {[%emt 0:00:09]} h5 {[%emt 0:00:38]} 34. a4 {[%emt 0:03:06]} Rf8 {[%emt 0:01:32]} 35. a5 {[%emt 0:00:30]} a6 {[%emt 0:00:08]} 36. Nf3 {[%emt 0:02:17]} Kg6 {[%emt 0:01:10]} 37. Ng5 {[%emt 0:00:17]} Kg7 {[%emt 0:02:36]} 38. Kd2 {[%emt 0:01:29]} Kg6 {[%emt 0:00:07]} 39. Ke1 {[%emt 0:00:41]} Bb1 {[%emt 0:01:10]} 40. Ne6 {[%emt 0:00:00]} Rf7 {[%emt 0:00:00]} 41. Nd8 {[%emt 0:09:39]} Rf8 {[%emt 0:00:43]} 42. Nxb7 {[%emt 0:01:12]} Kf5 {[%emt 0:05:53]} 43. Rxf6+ {[%emt 0:01:05]} 1-0

[Event "72nd RUS-ch Higher League 2019"]
[Site "Yaroslavl"]
[Date "2019.07.05"]
[Round "8.26"]
[White "Nozdrachev, Vladislav"]
[Black "Kanter, Eduard"]
[Result "1-0"]
[ECO "B70"]
[WhiteElo "2481"]
[BlackElo "2392"]
[Annotator "ChessBase"]
[PlyCount "74"]
[EventDate "2019.06.27"]
[EventType "swiss"]
[EventCountry "RUS"]
[SourceTitle "playchess.com"]
[Source "ChessBase"]
[SourceQuality "1"]
[TimeControl "40/5400+30:1800+30"]

1. e4 {[%emt 0:00:00]} c5 {[%emt 0:01:50]} 2. Nf3 {[%emt 0:00:00]} d6 {[%emt 0:00:06]} 3. d4 {[%emt 0:00:00]} cxd4 {[%emt 0:00:06]} 4. Nxd4 {[%emt 0:00:00]} Nf6 {[%emt 0:00:06]} 5. Nc3 {[%emt 0:00:00]} g6 {[%emt 0:00:09]} 6. g3 {[%emt 0:00:00]} Nc6 {[%emt 0:00:55]} 7. Nxc6 {[%emt 0:00:04]} bxc6 {[%emt 0:00:06]} 8. Bg2 {[%emt 0:00:02]} Nd7 {[%emt 0:10:04]} 9. b3 {[%emt 0:12:22]} Bg7 {[%emt 0:01:02]} 10. Bb2 {[%emt 0:00:05]} O-O {[%emt 0:01:44]} 11. O-O {[%emt 0:03:46]} Qa5 {[%emt 0:12:30]} 12. Qd2 {[%emt 0:00:19]} Nb6 {[%emt 0:01:01]} 13. Rad1 {[%emt 0:00:28]} Qh5 {[%emt 0:04:36]} 14. h4 {[%emt 0:13:42]} Bg4 {[%emt 0:03:42]} 15. f3 {[%emt 0:00:05]} Be6 {[%emt 0:00:27]} 16. Ba1 {[%emt 0:04:45]} Qc5+ {[%emt 0:05:33]} 17. Kh2 {[%emt 0:05:23]} a5 {[%emt 0:10:24]} 18. f4 {[%emt 0:05:25]} Bg4 {[%emt 0:01:04]} 19. Rde1 {[%emt 0:00:08]} Rad8 {[%emt 0:07:27]} 20. Re3 {[%emt 0:06:10]} e5 {[%emt 0:08:42]} 21. Rd3 {[%emt 0:04:20]} exf4 {[%emt 0:07:12]} 22. Qxf4 {[%emt 0:00:11]} Bc8 {[%emt 0:08:47]} 23. Rfd1 {[%emt 0:09:34]} Ba6 {[%emt 0:01:31]} 24. Rxd6 {[%emt 0:02:26]} Rxd6 {[%emt 0:10:58]} 25. Qxd6 {[%emt 0:00:07]} Qe3 {[%emt 0:01:42]} 26. Qd2 {[%emt 0:03:37]} Qc5 {[%emt 0:00:08]} 27. e5 {[%emt 0:00:28]} Bxe5 {[%emt 0:00:56]} 28. Ne4 {[%emt 0:00:07]} Qe7 {[%emt 0:00:07]} 29. Qxa5 {[%emt 0:03:02]} Qxh4+ {[%emt 0:00:05]} 30. Kg1 {[%emt 0:00:07]} Bxg3 {[%emt 0:01:23]} 31. Nxg3 {[%emt 0:01:13]} Qxg3 {[%emt 0:00:04]} 32. Qxb6 {[%emt 0:00:19]} Be2 {[%emt 0:00:50]} 33. Rb1 {[%emt 0:00:21]} f6 {[%emt 0:00:37]} 34. Qf2 {[%emt 0:00:19]} Qg4 {[%emt 0:00:06]} 35. Re1 {[%emt 0:00:13]} Ba6 {[%emt 0:00:23]} 36. Bxf6 {[%emt 0:00:58]} c5 {[%emt 0:00:28]} 37. Qf4 {[%emt 0:01:41]} Qd7 {[%emt 0:01:39]} 1-0

[Event "72nd RUS-ch Higher League 2019"]
[Site "Yaroslavl"]
[Date "2019.07.05"]
[Round "8.27"]
[White "Bigaliev, Renat"]
[Black "Samojlov, Anton"]
[Result "1-0"]
[ECO "B31"]
[WhiteElo "2427"]
[BlackElo "2350"]
[Annotator "NA"]
[PlyCount "97"]
[EventDate "2019.06.27"]
[EventType "swiss"]
[EventCountry "RUS"]
[SourceTitle "playchess.com"]
[Source "ChessBase"]
[SourceQuality "1"]
[TimeControl "40/5400+30:1800+30"]

1. e4 {[%emt 0:00:00]} c5 {[%emt 0:00:00]} 2. Nf3 {[%emt 0:00:00]} Nc6 {[%emt 0:00:24]} 3. Bb5 {[%emt 0:00:09]} g6 {[%emt 0:00:07]} 4. Bxc6 {[%emt 0:00:33]} dxc6 {[%emt 0:00:08]} 5. d3 {[%emt 0:00:26]} Bg7 {[%emt 0:00:24]} 6. h3 {[%emt 0:01:49]} Nh6 {[%emt 0:03:43]} 7. Nc3 {[%emt 0:03:49]} f6 {[%emt 0:00:40]} 8. Be3 {[%emt 0:04:07]} b6 {[%emt 0:00:21]} 9. O-O {[%emt 0:04:55]} e5 {[%emt 0:01:33]} 10. Nh2 {[%emt 0:02:28]} Nf7 {[%emt 0:03:05]} 11. f4 {[%emt 0:07:13]} exf4 {[%emt 0:02:29]} 12. Bxf4 {[%emt 0:01:38]} O-O {[%emt 0:00:43]} 13. Nf3 {[%emt 0:05:01]} f5 {[%emt 0:01:23]} 14. exf5 {[%emt 0:10:14]} Bxf5 {[%emt 0:00:59]} 15. Qd2 {[%emt 0:00:18]} Qd7 {[%emt 0:04:58]} 16. Rae1 {[%emt 0:00:35]} Rae8 {[%emt 0:01:37]} 17. b3 {[%emt 0:03:29]} g5 {[%emt 0:24:52]} 18. Bxg5 {[%emt 0:22:49]} Rxe1 {[%emt 0:09:15]} 19. Rxe1 {[%emt 0:00:18]} Bxh3 {[%emt 0:01:03]} 20. Re7 {[%emt 0:03:18]} Qf5 {[%emt 0:04:14]} 21. Ne4 {[%emt 0:05:00]} Nxg5 {[%emt 0:13:38]} 22. Nexg5 {[%emt 0:06:15]} Bg4 {[%emt 0:03:11]} 23. Ne6 {[%emt 0:00:24]} Rf7 {[%emt 0:09:48]} 24. Re8+ {[%emt 0:03:05]} Bf8 {[%emt 0:00:23]} 25. Qh6 {[%emt 0:05:13]} Qf6 {[%emt 0:04:26]} 26. Qxf6 {[%emt 0:02:33]} Rxf6 {[%emt 0:00:02]} 27. Nxf8 {[%emt 0:00:10]} Rxf8 {[%emt 0:00:38]} 28. Rxf8+ {[%emt 0:00:04]} Kxf8 {[%emt 0:00:06]} 29. Ne5 {[%emt 0:00:02]} Bd1 {[%emt 0:00:17]} 30. c4 {[%emt 0:02:13]} Ke7 {[%emt 0:06:56]} 31. Nxc6+ {[%emt 0:00:42]} Kd6 {[%emt 0:03:16]} 32. Nxa7 {[%emt 0:00:06]} Bc2 {[%emt 0:00:09]} 33. Kf2 {[%emt 0:00:36]} Bxd3 {[%emt 0:00:26]} 34. Ke3 {[%emt 0:00:24]} Bf1 {[%emt 0:00:59]} 35. g3 {[%emt 0:00:44]} Bh3 {[%emt 0:00:07]} 36. Kf4 {[%emt 0:01:47]} Bd7 {[%emt 0:00:45]} 37. Nb5+ {[%emt 0:00:25]} Ke6 {[%emt 0:00:32]} 38. Nc7+ {[%emt 0:01:43]} Kd6 {[%emt 0:00:24]} 39. Nb5+ {[%emt 0:01:29]} Ke6 {[%emt 0:00:03]} 40. Nc3 {[%emt 0:00:00]} Bc6 {[%emt 0:00:00]} 41. Ne4 {[%emt 0:13:42]} h6 {[%emt 0:03:27]} 42. Nc3 {[%emt 0:01:15]} Kd6 {[%emt 0:01:24]} 43. Kf5 {[%emt 0:00:28]} Be8 {[%emt 0:00:53]} 44. Ne4+ {[%emt 0:01:27]} Kc6 {[%emt 0:00:39]} 45. Nf6 {[%emt 0:02:34]} Bf7 {[%emt 0:00:13]} 46. Ng4 {[%emt 0:00:21]} Bg8 {[%emt 0:00:14]} 47. Ne5+ {[%emt 0:04:56]} Kd6 {[%emt 0:00:14]} 48. Kf6 {[%emt 0:00:19]} h5 {[%emt 0:00:27]} 49. Nf7+ {[%emt 0:01:40] Kd5} 1-0

[Event "72nd RUS-ch Higher League 2019"]
[Site "Yaroslavl"]
[Date "2019.07.05"]
[Round "8.28"]
[White "Bimiev, Ahmad"]
[Black "Bykov, Oleg"]
[Result "1-0"]
[ECO "A20"]
[WhiteElo "2238"]
[BlackElo "2401"]
[Annotator "NA"]
[PlyCount "202"]
[EventDate "2019.06.27"]
[EventType "swiss"]
[EventCountry "RUS"]
[SourceTitle "playchess.com"]
[Source "ChessBase"]
[SourceQuality "1"]
[TimeControl "40/5400+30:1800+30"]

1. c4 {[%emt 0:00:26]} e5 {[%emt 0:00:00]} 2. g3 {[%emt 0:00:24]} Nf6 {[%emt 0:00:19]} 3. Bg2 {[%emt 0:00:09]} d5 {[%emt 0:01:58]} 4. cxd5 {[%emt 0:00:07]} Nxd5 {[%emt 0:00:04]} 5. Nc3 {[%emt 0:00:07]} Nb6 {[%emt 0:00:06]} 6. Nf3 {[%emt 0:00:41]} Nc6 {[%emt 0:00:05]} 7. O-O {[%emt 0:00:33]} Be7 {[%emt 0:00:06]} 8. d3 {[%emt 0:00:09]} O-O {[%emt 0:00:07]} 9. a3 {[%emt 0:01:02]} Re8 {[%emt 0:00:07]} 10. Be3 {[%emt 0:02:42]} Bf8 {[%emt 0:01:57]} 11. Rc1 {[%emt 0:18:15]} Nd4 {[%emt 0:04:12]} 12. b4 {[%emt 0:03:27]} c6 {[%emt 0:10:45]} 13. Ne4 {[%emt 0:02:09]} Bg4 {[%emt 0:15:29]} 14. Bxd4 {[%emt 0:07:44]} exd4 {[%emt 0:00:06]} 15. Nc5 {[%emt 0:00:38]} Bc8 {[%emt 0:08:41]} 16. Nb3 {[%emt 0:02:02]} a5 {[%emt 0:04:43]} 17. bxa5 {[%emt 0:16:13]} Nd5 {[%emt 0:02:27]} 18. Nfxd4 {[%emt 0:00:11]} Bxa3 {[%emt 0:00:25]} 19. Rc4 {[%emt 0:00:40]} Qe7 {[%emt 0:06:34]} 20. e4 {[%emt 0:06:05]} Nc7 {[%emt 0:02:20]} 21. Qc2 {[%emt 0:00:45]} Bb4 {[%emt 0:04:11]} 22. Ra1 {[%emt 0:04:57]} g6 {[%emt 0:06:15]} 23. Ra4 {[%emt 0:10:24]} Na6 {[%emt 0:02:05]} 24. Qb1 {[%emt 0:03:05]} c5 {[%emt 0:04:05]} 25. Ne2 {[%emt 0:00:24]} Nc7 {[%emt 0:07:58]} 26. Ra1 {[%emt 0:06:20]} Be6 {[%emt 0:00:52]} 27. Rc2 {[%emt 0:01:03]} Nb5 {[%emt 0:04:48]} 28. Qb2 {[%emt 0:00:58]} Red8 {[%emt 0:04:34]} 29. Nxc5 {[%emt 0:01:01]} Bxc5 {[%emt 0:00:09]} 30. Qxb5 {[%emt 0:00:04]} Bxf2+ {[%emt 0:00:11]} 31. Kh1 {[%emt 0:01:49]} Qd7 {[%emt 0:05:59]} 32. Qxd7 {[%emt 0:02:06]} Rxd7 {[%emt 0:00:08]} 33. Nf4 {[%emt 0:02:32]} Bb6 {[%emt 0:00:49]} 34. Nxe6 {[%emt 0:02:06]} fxe6 {[%emt 0:00:05]} 35. Bh3 {[%emt 0:00:47]} Rd6 {[%emt 0:00:38]} 36. e5 {[%emt 0:01:00]} Rxd3 {[%emt 0:00:09]} 37. Bxe6+ {[%emt 0:00:04]} Kg7 {[%emt 0:00:21]} 38. Rb2 {[%emt 0:01:06]} Rxa5 39. Rxa5 {[%emt 0:00:10]} Bxa5 {[%emt 0:00:30]} 40. Rxb7+ {[%emt 0:00:00]} Kf8 {[%emt 0:00:00]} 41. Rf7+ {[%emt 0:00:41]} Ke8 {[%emt 0:02:09]} 42. Rxh7 {[%emt 0:00:21]} Re3 {[%emt 0:03:47]} 43. Bf7+ {[%emt 0:00:15]} Kf8 {[%emt 0:00:05]} 44. Bxg6 {[%emt 0:03:04]} Rxe5 {[%emt 0:00:08]} 45. Kg2 {[%emt 0:02:36]} Re7 {[%emt 0:01:41]} 46. Rh5 {[%emt 0:00:24]} Bc7 {[%emt 0:00:19]} 47. Bd3 {[%emt 0:00:19]} Kg8 {[%emt 0:00:45]} 48. Rf5 {[%emt 0:00:35]} Bd6 {[%emt 0:00:31]} 49. Rf3 {[%emt 0:01:14]} Kg7 {[%emt 0:00:17]} 50. h4 {[%emt 0:00:32]} Bc5 {[%emt 0:00:36]} 51. Rf5 {[%emt 0:00:39]} Bd4 {[%emt 0:03:32]} 52. Rd5 {[%emt 0:00:20]} Bf6 {[%emt 0:02:04]} 53. Kf3 {[%emt 0:00:53]} Re5 {[%emt 0:02:01]} 54. Rd6 {[%emt 0:00:31]} Be7 {[%emt 0:00:39]} 55. Rd7 {[%emt 0:01:17]} Kf8 {[%emt 0:00:22]} 56. Be4 {[%emt 0:02:10]} Ba3 {[%emt 0:02:04]} 57. g4 {[%emt 0:05:11]} Bc1 {[%emt 0:02:43]} 58. Rd1 {[%emt 0:01:49]} Rc5 {[%emt 0:00:16]} 59. Bd5 {[%emt 0:00:36]} Kg7 {[%emt 0:01:05]} 60. g5 {[%emt 0:00:14]} Rc2 {[%emt 0:02:49]} 61. Be4 {[%emt 0:00:58]} Rc4 {[%emt 0:00:25]} 62. Rd7+ {[%emt 0:00:27]} Kh8 {[%emt 0:00:06]} 63. g6 {[%emt 0:01:56]} Rc5 {[%emt 0:00:39]} 64. g7+ {[%emt 0:00:10]} Kg8 {[%emt 0:00:06]} 65. Bd5+ {[%emt 0:00:06]} Rxd5 {[%emt 0:00:07]} 66. Rxd5 {[%emt 0:00:02]} Kxg7 {[%emt 0:00:06]} 67. Kg4 {[%emt 0:00:02]} Be3 {[%emt 0:01:42]} 68. Kh5 {[%emt 0:00:40]} Bc1 {[%emt 0:00:12]} 69. Rd1 {[%emt 0:00:11]} Be3 {[%emt 0:00:18]} 70. Rd6 {[%emt 0:02:40]} Bc1 {[%emt 0:00:19]} 71. Rg6+ {[%emt 0:00:03]} Kf7 {[%emt 0:00:24]} 72. Rg2 {[%emt 0:00:05]} Kf6 {[%emt 0:00:40]} 73. Rc2 {[%emt 0:03:43]} Be3 {[%emt 0:00:10]} 74. Rc6+ {[%emt 0:00:57]} Kg7 {[%emt 0:01:20]} 75. Rc2 {[%emt 0:05:13]} Kf6 {[%emt 0:00:15]} 76. Kg4 {[%emt 0:00:25]} Kg6 {[%emt 0:00:53]} 77. Kf3 {[%emt 0:00:23]} Bh6 {[%emt 0:00:51]} 78. Ke4 {[%emt 0:07:56]} Kh5 {[%emt 0:00:46]} 79. Kf5 {[%emt 0:00:03]} Be3 {[%emt 0:00:51]} 80. Re2 {[%emt 0:00:50]} Bc1 {[%emt 0:00:48]} 81. Rc2 {[%emt 0:00:16]} Be3 {[%emt 0:00:12]} 82. Rc4 {[%emt 0:00:04]} Bf2 {[%emt 0:02:52]} 83. Re4 {[%emt 0:00:35]} Bc5 {[%emt 0:02:05]} 84. Kf4 {[%emt 0:02:10]} Ba3 {[%emt 0:02:29]} 85. Rc4 {[%emt 0:00:28]} Bd6+ {[%emt 0:00:38]} 86. Kf5 {[%emt 0:00:04]} Ba3 {[%emt 0:02:28]} 87. Rc8 {[%emt 0:00:56]} Kh6 {[%emt 0:01:47]} 88. Rc3 {[%emt 0:00:22]} Bb4 {[%emt 0:01:42]} 89. Rd3 {[%emt 0:01:21]} Bc5 {[%emt 0:01:46]} 90. h5 {[%emt 0:00:14]} Bb4 {[%emt 0:00:38]} 91. Rd1 {[%emt 0:01:25]} Bc5 {[%emt 0:00:46]} 92. Re1 {[%emt 0:00:36]} Bb4 {[%emt 0:00:43]} 93. Re2 {[%emt 0:00:13]} Ba3 {[%emt 0:01:08]} 94. Re6+ {[%emt 0:00:22]} Kh7 {[%emt 0:00:04]} 95. Rc6 {[%emt 0:01:40]} Bb4 {[%emt 0:00:05]} 96. Rc2 {[%emt 0:00:12]} Kh6 {[%emt 0:00:08]} 97. Ra2 {[%emt 0:00:09]} Bc5 {[%emt 0:01:27]} 98. Kf4 {[%emt 0:00:16]} Bb4 {[%emt 0:00:40]} 99. Kg4 {[%emt 0:00:10]} Bc3 {[%emt 0:00:33]} 100. Ra6+ {[%emt 0:00:04]} Kh7 {[%emt 0:00:05]} 101. h6 {[%emt 0:00:05]} Bd2 1-0

[Event "72nd RUS-ch Higher League 2019"]
[Site "Yaroslavl"]
[Date "2019.07.05"]
[Round "8.29"]
[White "Lesovoi, Evgenij"]
[Black "Drygalov, Sergey"]
[Result "0-1"]
[ECO "A17"]
[WhiteElo "2366"]
[BlackElo "2492"]
[Annotator "ChessBase"]
[PlyCount "98"]
[EventDate "2019.06.27"]
[EventType "swiss"]
[EventCountry "RUS"]
[SourceTitle "playchess.com"]
[Source "ChessBase"]
[SourceQuality "1"]
[TimeControl "40/5400+30:1800+30"]

1. Nf3 {[%emt 0:00:00]} Nf6 {[%emt 0:00:00]} 2. c4 {[%emt 0:00:00]} e6 {[%emt 0:00:15]} 3. Nc3 {[%emt 0:00:00]} Bb4 {[%emt 0:04:43]} 4. g3 {[%emt 0:04:15]} O-O {[%emt 0:01:23]} 5. a3 {[%emt 0:01:07]} Bxc3 {[%emt 0:00:43]} 6. bxc3 {[%emt 0:00:09]} Nc6 {[%emt 0:04:47]} 7. Bg2 {[%emt 0:02:34]} e5 {[%emt 0:00:11]} 8. O-O {[%emt 0:00:46]} d6 {[%emt 0:00:24]} 9. d3 {[%emt 0:00:41]} e4 {[%emt 0:01:30]} 10. Nd4 {[%emt 0:00:30]} exd3 {[%emt 0:06:33]} 11. exd3 {[%emt 0:01:43]} Bd7 {[%emt 0:03:03]} 12. h3 {[%emt 0:02:13]} Rb8 {[%emt 0:06:07]} 13. Be3 {[%emt 0:03:36]} Ne7 {[%emt 0:03:31]} 14. Rb1 {[%emt 0:03:31]} c5 {[%emt 0:05:50]} 15. Nb5 {[%emt 0:08:29]} Nc8 {[%emt 0:00:20]} 16. a4 {[%emt 0:00:23]} Bc6 {[%emt 0:03:37]} 17. d4 {[%emt 0:00:48]} Bxg2 {[%emt 0:05:59]} 18. Kxg2 {[%emt 0:00:06]} a6 {[%emt 0:04:17]} 19. Na3 {[%emt 0:00:33]} Nd7 {[%emt 0:06:34]} 20. Qf3 {[%emt 0:09:38]} Qc7 {[%emt 0:00:52]} 21. Rb3 {[%emt 0:03:06]} Ne7 {[%emt 0:04:16]} 22. Nb1 {[%emt 0:05:31]} cxd4 {[%emt 0:02:30]} 23. cxd4 {[%emt 0:01:43]} Qxc4 {[%emt 0:00:10]} 24. Rxb7 {[%emt 0:01:44]} Rxb7 {[%emt 0:06:07]} 25. Qxb7 {[%emt 0:00:06]} Rd8 {[%emt 0:02:53]} 26. Rc1 {[%emt 0:10:51]} Qxa4 {[%emt 0:01:29]} 27. Qe4 {[%emt 0:00:11]} Re8 {[%emt 0:03:37]} 28. Bg5 {[%emt 0:07:54]} Nc5 {[%emt 0:06:41]} 29. Qg4 {[%emt 0:00:55]} Nd3 {[%emt 0:05:56]} 30. Rc7 {[%emt 0:07:36]} Ne1+ {[%emt 0:04:23]} 31. Kh2 {[%emt 0:00:38]} f5 {[%emt 0:02:00]} 32. Qh5 {[%emt 0:02:20]} g6 {[%emt 0:03:10]} 33. Qe2 {[%emt 0:06:40]} Nd5 {[%emt 0:00:05]} 34. Rc8 {[%emt 0:02:22]} Kf7 {[%emt 0:02:04]} 35. Rxe8 {[%emt 0:00:10]} Qxe8 {[%emt 0:00:05]} 36. Be3 {[%emt 0:00:05]} Ng2 {[%emt 0:00:53]} 37. Kxg2 {[%emt 0:02:51]} Qe4+ {[%emt 0:00:01]} 38. Kh2 {[%emt 0:01:56]} Qxb1 {[%emt 0:00:54]} 39. Qc4 {[%emt 0:00:15]} Qb5 {[%emt 0:00:37]} 40. Qa2 {[%emt 0:00:00]} a5 {[%emt 0:00:00]} 41. Bd2 {[%emt 0:05:59]} a4 {[%emt 0:01:09]} 42. Bc1 {[%emt 0:00:51]} Qb3 {[%emt 0:02:26]} 43. Qe2 {[%emt 0:00:43]} a3 {[%emt 0:02:10]} 44. Qa6 {[%emt 0:00:26]} a2 {[%emt 0:01:01]} 45. Qa7+ {[%emt 0:00:05]} Ke6 {[%emt 0:02:34]} 46. Qa8 {[%emt 0:00:25]} Kd7 {[%emt 0:00:42]} 47. Bg5 {[%emt 0:00:21]} Nc7 {[%emt 0:03:08]} 48. Qd8+ {[%emt 0:00:14]} Kc6 {[%emt 0:00:06]} 49. d5+ {[%emt 0:00:29]} Qxd5 {[%emt 0:00:17]} 0-1

[Event "72nd RUS-ch Higher League 2019"]
[Site "Yaroslavl"]
[Date "2019.07.06"]
[Round "9.3"]
[White "Alekseenko, Kirill"]
[Black "Sjugirov, Sanan"]
[Result "1/2-1/2"]
[ECO "B90"]
[WhiteElo "2650"]
[BlackElo "2667"]
[Annotator "RC"]
[PlyCount "111"]
[EventDate "2019.06.27"]
[EventType "swiss"]
[EventCountry "RUS"]
[SourceTitle "playchess.com"]
[Source "ChessBase"]
[SourceQuality "1"]
[TimeControl "40/5400+30:1800+30"]

1. e4 {[%emt 0:00:00]} c5 {[%emt 0:00:06]} 2. Nf3 {[%emt 0:00:00]} d6 {[%emt 0:00:09]} 3. d4 {[%emt 0:00:00]} cxd4 {[%emt 0:00:06]} 4. Nxd4 {[%emt 0:00:00]} Nf6 {[%emt 0:00:11]} 5. Nc3 {[%emt 0:00:05]} a6 {[%emt 0:00:06]} 6. Nb3 {[%emt 0:00:07]} e6 {[%emt 0:01:19]} 7. g4 {[%emt 0:00:08]} b5 {[%emt 0:00:38]} 8. a3 {[%emt 0:00:15]} Bb7 {[%emt 0:01:33]} 9. Bg2 {[%emt 0:00:05]} Be7 {[%emt 0:09:11]} 10. g5 {[%emt 0:00:37]} Nfd7 {[%emt 0:00:19]} 11. f4 {[%emt 0:00:17]} Nc6 {[%emt 0:13:49]} 12. h4 {[%emt 0:02:21]} Nb6 {[%emt 0:06:57]} 13. f5 {[%emt 0:22:08]} exf5 {[%emt 0:14:44]} 14. exf5 {[%emt 0:01:24]} Qc8 {[%emt 0:00:11]} 15. O-O {[%emt 0:04:01]} Ne5 {[%emt 0:00:59]} 16. Ne4 {[%emt 0:01:57]} h6 {[%emt 0:09:26]} 17. g6 {[%emt 0:12:39]} fxg6 {[%emt 0:11:54]} 18. Nxd6+ {[%emt 0:01:48]} Bxd6 {[%emt 0:00:06]} 19. Qxd6 {[%emt 0:02:14]} Nbc4 {[%emt 0:00:40]} 20. Bxb7 {[%emt 0:01:15]} Qxb7 {[%emt 0:00:40]} 21. Qe6+ {[%emt 0:00:06]} Qe7 {[%emt 0:00:10]} 22. Nc5 {[%emt 0:13:17]} gxf5 {[%emt 0:07:20]} 23. Bf4 {[%emt 0:08:57]} Qxe6 {[%emt 0:02:14]} 24. Nxe6 {[%emt 0:00:04]} Kf7 {[%emt 0:00:34]} 25. Nd4 {[%emt 0:03:22]} Ng4 {[%emt 0:01:38]} 26. b3 {[%emt 0:04:54]} Nce3 {[%emt 0:00:26]} 27. Bxe3 {[%emt 0:00:06]} Nxe3 {[%emt 0:00:04]} 28. Rf3 {[%emt 0:00:12]} Rhe8 {[%emt 0:02:19]} 29. Re1 {[%emt 0:01:55]} Ng4 {[%emt 0:01:04]} 30. Rxf5+ {[%emt 0:00:08]} Nf6 {[%emt 0:00:10]} 31. Rxe8 {[%emt 0:02:27]} Rxe8 {[%emt 0:00:14]} 32. Rc5 {[%emt 0:00:05]} Re4 {[%emt 0:04:57]} 33. Nf3 {[%emt 0:00:50]} Rg4+ {[%emt 0:03:19]} 34. Kf1 {[%emt 0:03:16]} Ke6 {[%emt 0:00:29]} 35. Rc6+ {[%emt 0:04:12]} Kf5 {[%emt 0:01:28]} 36. Rxa6 {[%emt 0:00:33]} Kf4 {[%emt 0:01:52]} 37. Ne1 {[%emt 0:00:04]} Kg3 {[%emt 0:01:42]} 38. Rb6 {[%emt 0:06:09]} Nd5 {[%emt 0:01:35]} 39. Rb7 {[%emt 0:03:03]} g6 {[%emt 0:02:21]} 40. a4 {[%emt 0:00:00]} Rxh4 {[%emt 0:00:00]} 41. axb5 {[%emt 0:18:46]} Nf4 {[%emt 0:18:02]} 42. Kg1 {[%emt 0:00:13]} Ne2+ {[%emt 0:07:32]} 43. Kf1 {[%emt 0:00:04]} Nd4 {[%emt 0:02:11]} 44. Kg1 {[%emt 0:00:52]} Ne2+ {[%emt 0:04:21]} 45. Kf1 {[%emt 0:00:02]} Nc1 {[%emt 0:01:23]} 46. Kg1 {[%emt 0:11:41]} Re4 {[%emt 0:00:04]} 47. Ng2 {[%emt 0:00:09]} Re2 {[%emt 0:00:05]} 48. Rc7 {[%emt 0:00:03]} Rxg2+ {[%emt 0:00:18]} 49. Kf1 {[%emt 0:00:03]} Rf2+ {[%emt 0:00:20]} 50. Ke1 {[%emt 0:00:02]} Rf5 {[%emt 0:00:22]} 51. b6 {[%emt 0:01:02]} Rb5 {[%emt 0:01:51]} 52. b7 {[%emt 0:01:28]} h5 {[%emt 0:00:11]} 53. Kd2 {[%emt 0:01:44]} Nxb3+ {[%emt 0:00:06]} 54. cxb3 {[%emt 0:00:05]} h4 {[%emt 0:00:53]} 55. Rg7 {[%emt 0:00:48]} Rxb3 {[%emt 0:00:58]} 56. Rxg6+ {[%emt 0:00:16]} 1/2-1/2